[Event "Titled Tuesday Blitz August 08 Late 2023"]
[White "Principe, Alexander"]
[Black "Leschinsky, Gary"]
[WhiteFideId "3804542"]
[BlackFideId "30951321"]
[WhiteElo "2559"]
[BlackElo "2372"]
[Result "1-0"]
[Round "4"]
[TimeControl "180+1"]
[Date "2023.08.08"]
[WhiteClock "0:00:15"]
[BlackClock "0:00:07"]
[Board "99"]

1. e4 {[%clk 0:02:52]}  c5 {[%clk 0:02:58]} 2. Nf3 {[%clk 0:02:50]}  e6 {[%clk 0:02:58]} 3. d4 {[%clk 0:02:50]}  cxd4 {[%clk 0:02:57]} 4. Nxd4 {[%clk 0:02:51]}  Nf6 {[%clk 0:02:57]} 5. Bd3 {[%clk 0:02:47]}  Nc6 {[%clk 0:02:55]} 6. Nxc6 {[%clk 0:02:44]}  dxc6 {[%clk 0:02:56]} 7. O-O {[%clk 0:02:43]}  e5 {[%clk 0:02:55]} 8. Bg5 {[%clk 0:02:43]}  h6 {[%clk 0:02:53]} 9. Bh4 {[%clk 0:02:42]}  Bc5 {[%clk 0:02:54]} 10. Nd2 {[%clk 0:02:37]}  O-O {[%clk 0:02:54]} 11. Kh1 {[%clk 0:02:35]}  g5 {[%clk 0:02:51]} 12. Bg3 {[%clk 0:02:35]}  Qe7 {[%clk 0:02:51]} 13. Nb3 {[%clk 0:02:32]}  Bd6 {[%clk 0:02:50]} 14. Qe1 {[%clk 0:02:31]}  Be6 {[%clk 0:02:49]} 15. f3 {[%clk 0:02:31]}  Kg7 {[%clk 0:02:48]} 16. Bf2 {[%clk 0:02:30]}  h5 {[%clk 0:02:39]} 17. Be3 {[%clk 0:02:26]}  Nd7 {[%clk 0:02:37]} 18. Qf2 {[%clk 0:02:21]}  Rh8 {[%clk 0:02:35]} 19. c4 {[%clk 0:02:21]}  f6 {[%clk 0:02:31]} 20. c5 {[%clk 0:02:21]}  Bc7 {[%clk 0:02:30]} 21. h4 {[%clk 0:02:21]}  Nf8 {[%clk 0:02:09]} 22. Qg3 {[%clk 0:02:11]}  Kg6 {[%clk 0:02:03]} 23. f4 {[%clk 0:01:57]}  exf4 {[%clk 0:02:01]} 24. e5+ {[%clk 0:01:58]}  Kf7 {[%clk 0:01:36]} 25. Bxf4 {[%clk 0:01:47]}  gxf4 {[%clk 0:01:31]} 26. Qxf4 {[%clk 0:01:48]}  Rd8 {[%clk 0:01:23]} 27. Nd4 {[%clk 0:01:45]}  Bg4 {[%clk 0:01:12]} 28. Rae1 {[%clk 0:01:42]}  Rd5 {[%clk 0:00:47]} 29. Bc4 {[%clk 0:01:14]}  Ng6 {[%clk 0:00:34]} 30. Qxf6+ {[%clk 0:01:10]}  Qxf6 {[%clk 0:00:34]} 31. Rxf6+ {[%clk 0:01:11]}  Kg7 {[%clk 0:00:33]} 32. Bxd5 {[%clk 0:01:11]}  cxd5 {[%clk 0:00:34]} 33. Nf5+ {[%clk 0:00:19]}  Bxf5 {[%clk 0:00:32]} 34. Rxf5 {[%clk 0:00:19]}  d4 {[%clk 0:00:24]} 35. g3 {[%clk 0:00:19]}  d3 {[%clk 0:00:23]} 36. Kg2 {[%clk 0:00:17]}  Re8 {[%clk 0:00:18]} 37. Rxh5 {[%clk 0:00:16]}  Bxe5 {[%clk 0:00:13]} 38. Rd1 {[%clk 0:00:11]}  Rd8 {[%clk 0:00:11]} 39. Kf3 {[%clk 0:00:10]}  Bxb2 {[%clk 0:00:11]} 40. Ke3 {[%clk 0:00:09]}  Bd4+ {[%clk 0:00:10]} 41. Kxd3 {[%clk 0:00:10]}  Bxc5+ {[%clk 0:00:10]} 42. Kc2 {[%clk 0:00:10]}  Rc8 {[%clk 0:00:08]} 43. Kb3 {[%clk 0:00:10]}  Rc7 {[%clk 0:00:05]} 44. Rdd5 {[%clk 0:00:09]}  Be7 {[%clk 0:00:05]} 45. Rhf5 {[%clk 0:00:09]}  Bf6 {[%clk 0:00:04]} 46. Rd6 {[%clk 0:00:08]}  Rc3+ {[%clk 0:00:02]} 47. Kb4 {[%clk 0:00:08]}  a5+ {[%clk 0:00:02]} 48. Kxa5 {[%clk 0:00:09]}  Ra3+ {[%clk 0:00:02]} 49. Kb4 {[%clk 0:00:09]}  Be7 {[%clk 0:00:02]} 50. Kxa3 {[%clk 0:00:08]}  Bxd6+ {[%clk 0:00:03]} 51. Ka4 {[%clk 0:00:09]}  Bxg3 {[%clk 0:00:04]} 52. h5 {[%clk 0:00:09]}  Ne7 {[%clk 0:00:03]} 53. Rg5+ {[%clk 0:00:09]}  Kf6 {[%clk 0:00:03]} 54. Rxg3 {[%clk 0:00:10]}  Nf5 {[%clk 0:00:04]} 55. Rf3 {[%clk 0:00:10]}  Kg5 {[%clk 0:00:05]} 56. Rxf5+ {[%clk 0:00:10]}  Kxf5 {[%clk 0:00:05]} 57. Kb5 {[%clk 0:00:11]}  Kg5 {[%clk 0:00:05]} 58. Kb6 {[%clk 0:00:12]}  Kxh5 {[%clk 0:00:06]} 59. Kxb7 {[%clk 0:00:12]}  Kg6 {[%clk 0:00:07]} 60. a4 {[%clk 0:00:13]}  Kf6 {[%clk 0:00:07]} 61. a5 {[%clk 0:00:14]}  Ke6 {[%clk 0:00:07]} 62. a6 {[%clk 0:00:15]} 1-0


[Site "https://www.chess.com"]

[Event "Titled Tuesday Blitz August 08 Late 2023"]
[White "Janaszak, Dawid"]
[Black "Lopez Gracia, Fernando"]
[WhiteFideId "1119206"]
[BlackFideId "2207184"]
[WhiteElo "2551"]
[BlackElo "2339"]
[Result "1/2-1/2"]
[Round "4"]
[TimeControl "180+1"]
[Date "2023.08.08"]
[WhiteClock "0:00:08"]
[BlackClock "0:00:11"]
[Board "100"]

1. d4 {[%clk 0:03:00]}  Nf6 {[%clk 0:02:59]} 2. Nc3 {[%clk 0:03:01]}  d5 {[%clk 0:02:57]} 3. Bf4 {[%clk 0:03:01]}  e6 {[%clk 0:02:54]} 4. a3 {[%clk 0:02:59]}  a6 {[%clk 0:02:47]} 5. e3 {[%clk 0:02:57]}  c5 {[%clk 0:02:46]} 6. g4 {[%clk 0:02:54]}  h6 {[%clk 0:02:43]} 7. Qf3 {[%clk 0:02:48]}  Nc6 {[%clk 0:02:33]} 8. O-O-O {[%clk 0:02:48]}  Qa5 {[%clk 0:02:28]} 9. Nge2 {[%clk 0:02:42]}  b5 {[%clk 0:02:25]} 10. dxc5 {[%clk 0:02:32]}  Bxc5 {[%clk 0:02:09]} 11. Nd4 {[%clk 0:02:26]}  Bxa3 {[%clk 0:01:45]} 12. Nxc6 {[%clk 0:02:27]}  Qxc3 {[%clk 0:01:45]} 13. bxa3 {[%clk 0:02:21]}  Qxc6 {[%clk 0:01:39]} 14. Bd3 {[%clk 0:02:08]}  Bb7 {[%clk 0:01:33]} 15. Be5 {[%clk 0:01:59]}  Qc5 {[%clk 0:01:07]} 16. Kb2 {[%clk 0:01:50]}  Qe7 {[%clk 0:01:06]} 17. Rhg1 {[%clk 0:01:40]}  b4 {[%clk 0:01:01]} 18. a4 {[%clk 0:01:38]}  Rc8 {[%clk 0:00:53]} 19. h4 {[%clk 0:01:32]}  Ne4 {[%clk 0:00:37]} 20. Bxg7 {[%clk 0:01:29]}  Rg8 {[%clk 0:00:37]} 21. Be5 {[%clk 0:01:24]}  f6 {[%clk 0:00:32]} 22. Bd4 {[%clk 0:01:01]}  e5 {[%clk 0:00:30]} 23. Bb6 {[%clk 0:01:01]}  Qe6 {[%clk 0:00:23]} 24. a5 {[%clk 0:00:55]}  Qc6 {[%clk 0:00:21]} 25. Qf5 {[%clk 0:00:18]}  Qc3+ {[%clk 0:00:21]} 26. Kb1 {[%clk 0:00:17]}  Rc6 {[%clk 0:00:19]} 27. Bxe4 {[%clk 0:00:14]}  dxe4 {[%clk 0:00:19]} 28. Qd7+ {[%clk 0:00:12]}  Kf8 {[%clk 0:00:19]} 29. Qd8+ {[%clk 0:00:12]}  Kg7 {[%clk 0:00:17]} 30. Qe7+ {[%clk 0:00:07]}  Kh8 {[%clk 0:00:14]} 31. Rd7 {[%clk 0:00:07]}  Qxc2+ {[%clk 0:00:12]} 32. Ka1 {[%clk 0:00:08]}  Qa4+ {[%clk 0:00:12]} 33. Kb1 {[%clk 0:00:07]}  Qb3+ {[%clk 0:00:11]} 34. Ka1 {[%clk 0:00:07]}  Qc3+ {[%clk 0:00:11]} 35. Kb1 {[%clk 0:00:07]}  Qc2+ {[%clk 0:00:11]} 36. Ka1 {[%clk 0:00:07]}  Qc3+ {[%clk 0:00:11]} 37. Kb1 {[%clk 0:00:08]}  Qb3+ {[%clk 0:00:11]} 38. Ka1 {[%clk 0:00:08]}  Qa3+ {[%clk 0:00:11]} 39. Kb1 {[%clk 0:00:08]}  Qb3+ {[%clk 0:00:11]} 1/2-1/2


[Site "https://www.chess.com"]

[Event "Titled Tuesday Blitz August 08 Late 2023"]
[White "The_Straightforward_Rook"]
[Black "Santos Flores, Alberto"]
[BlackFideId "3601234"]
[WhiteElo "2284"]
[BlackElo "2549"]
[Result "0-1"]
[Round "4"]
[TimeControl "180+1"]
[Date "2023.08.08"]
[WhiteClock "0:00:16"]
[BlackClock "0:00:19"]
[Board "101"]

1. d4 {[%clk 0:02:55]}  d5 {[%clk 0:02:58]} 2. Nf3 {[%clk 0:02:55]}  Nf6 {[%clk 0:02:58]} 3. c4 {[%clk 0:02:55]}  c6 {[%clk 0:02:58]} 4. cxd5 {[%clk 0:02:55]}  cxd5 {[%clk 0:02:58]} 5. Nc3 {[%clk 0:02:56]}  Nc6 {[%clk 0:02:58]} 6. Bf4 {[%clk 0:02:56]}  Bf5 {[%clk 0:02:58]} 7. Qb3 {[%clk 0:02:56]}  Na5 {[%clk 0:02:53]} 8. Qa4+ {[%clk 0:02:56]}  Bd7 {[%clk 0:02:52]} 9. Qc2 {[%clk 0:02:56]}  e6 {[%clk 0:02:48]} 10. e3 {[%clk 0:02:57]}  Rc8 {[%clk 0:02:48]} 11. Bd3 {[%clk 0:02:56]}  Be7 {[%clk 0:02:47]} 12. O-O {[%clk 0:02:55]}  O-O {[%clk 0:02:46]} 13. Rfc1 {[%clk 0:02:52]}  b5 {[%clk 0:02:46]} 14. Qe2 {[%clk 0:02:47]}  a6 {[%clk 0:02:37]} 15. Ne5 {[%clk 0:02:46]}  Nc4 {[%clk 0:02:36]} 16. Rc2 {[%clk 0:02:40]}  Nxe5 {[%clk 0:02:31]} 17. Bxe5 {[%clk 0:02:39]}  h6 {[%clk 0:02:26]} 18. Rac1 {[%clk 0:02:38]}  Qb6 {[%clk 0:02:24]} 19. h3 {[%clk 0:02:32]}  b4 {[%clk 0:02:07]} 20. Nb1 {[%clk 0:02:26]}  Rxc2 {[%clk 0:01:49]} 21. Rxc2 {[%clk 0:02:27]}  Bb5 {[%clk 0:01:39]} 22. Bxb5 {[%clk 0:02:25]}  axb5 {[%clk 0:01:39]} 23. Rc7 {[%clk 0:02:20]}  Bd6 {[%clk 0:01:35]} 24. Bxd6 {[%clk 0:02:18]}  Qxd6 {[%clk 0:01:36]} 25. Qc2 {[%clk 0:02:18]}  Qa6 {[%clk 0:01:25]} 26. b3 {[%clk 0:02:00]}  Ra8 {[%clk 0:01:22]} 27. Nd2 {[%clk 0:02:00]}  g6 {[%clk 0:01:15]} 28. Nf3 {[%clk 0:01:52]}  Qxa2 {[%clk 0:01:11]} 29. Qc5 {[%clk 0:01:51]}  Ne4 {[%clk 0:01:05]} 30. Qc2 {[%clk 0:01:04]}  Qxc2 {[%clk 0:01:03]} 31. Rxc2 {[%clk 0:01:05]}  Ra1+ {[%clk 0:00:53]} 32. Kh2 {[%clk 0:01:04]}  Rb1 {[%clk 0:00:53]} 33. Ne5 {[%clk 0:00:49]}  Nc3 {[%clk 0:00:50]} 34. Nd3 {[%clk 0:00:34]}  Rxb3 {[%clk 0:00:48]} 35. Nxb4 {[%clk 0:00:34]}  Rxb4 {[%clk 0:00:47]} 36. Rxc3 {[%clk 0:00:34]}  Rc4 {[%clk 0:00:45]} 37. Rb3 {[%clk 0:00:31]}  b4 {[%clk 0:00:45]} 38. Kg3 {[%clk 0:00:31]}  Kf8 {[%clk 0:00:45]} 39. Kf4 {[%clk 0:00:30]}  Ke7 {[%clk 0:00:45]} 40. g4 {[%clk 0:00:30]}  g5+ {[%clk 0:00:42]} 41. Kf3 {[%clk 0:00:29]}  Kd6 {[%clk 0:00:43]} 42. Ke2 {[%clk 0:00:27]}  Kc6 {[%clk 0:00:43]} 43. Rb1 {[%clk 0:00:20]}  Kb5 {[%clk 0:00:40]} 44. Kd3 {[%clk 0:00:20]}  Rc3+ {[%clk 0:00:39]} 45. Kd2 {[%clk 0:00:20]}  Ra3 {[%clk 0:00:40]} 46. Rc1 {[%clk 0:00:20]}  Ra7 {[%clk 0:00:29]} 47. Rc5+ {[%clk 0:00:20]}  Ka4 {[%clk 0:00:29]} 48. Rc1 {[%clk 0:00:20]}  Kb3 {[%clk 0:00:27]} 49. Rb1+ {[%clk 0:00:21]}  Kc4 {[%clk 0:00:27]} 50. Rc1+ {[%clk 0:00:21]}  Kb5 {[%clk 0:00:27]} 51. Rc5+ {[%clk 0:00:22]}  Kb6 {[%clk 0:00:28]} 52. Rc8 {[%clk 0:00:20]}  Ra2+ {[%clk 0:00:24]} 53. Kd3 {[%clk 0:00:20]}  Rxf2 {[%clk 0:00:24]} 54. Rb8+ {[%clk 0:00:20]}  Ka5 {[%clk 0:00:24]} 55. Ra8+ {[%clk 0:00:20]}  Kb5 {[%clk 0:00:24]} 56. Rb8+ {[%clk 0:00:21]}  Ka4 {[%clk 0:00:25]} 57. Rb7 {[%clk 0:00:21]}  Kb3 {[%clk 0:00:23]} 58. e4 {[%clk 0:00:20]}  dxe4+ {[%clk 0:00:23]} 59. Ke3 {[%clk 0:00:19]}  Rf1 {[%clk 0:00:22]} 60. Kxe4 {[%clk 0:00:20]}  Kc3 {[%clk 0:00:22]} 61. Rc7+ {[%clk 0:00:18]}  Kb2 {[%clk 0:00:22]} 62. d5 {[%clk 0:00:18]}  exd5+ {[%clk 0:00:22]} 63. Kxd5 {[%clk 0:00:19]}  b3 {[%clk 0:00:22]} 64. Rc6 {[%clk 0:00:19]}  Kb1 {[%clk 0:00:20]} 65. Rxh6 {[%clk 0:00:19]}  b2 {[%clk 0:00:20]} 66. Kd6 {[%clk 0:00:16]}  Rf2 {[%clk 0:00:19]} 0-1


[Site "https://www.chess.com"]

[Event "Titled Tuesday Blitz August 08 Late 2023"]
[White "ElDivis"]
[Black "Josgar05"]
[WhiteElo "2519"]
[BlackElo "2265"]
[Result "1-0"]
[Round "4"]
[TimeControl "180+1"]
[Date "2023.08.08"]
[WhiteClock "0:01:20"]
[BlackClock "0:00:44"]
[Board "103"]

1. e4 {[%clk 0:02:53]}  c6 {[%clk 0:03:00]} 2. d4 {[%clk 0:02:53]}  g6 {[%clk 0:03:00]} 3. h4 {[%clk 0:02:51]}  h6 {[%clk 0:02:57]} 4. h5 {[%clk 0:02:49]}  g5 {[%clk 0:02:57]} 5. f4 {[%clk 0:02:50]}  gxf4 {[%clk 0:02:57]} 6. Bxf4 {[%clk 0:02:51]}  Bg7 {[%clk 0:02:58]} 7. Nf3 {[%clk 0:02:48]}  d5 {[%clk 0:02:59]} 8. e5 {[%clk 0:02:42]}  Bg4 {[%clk 0:02:58]} 9. Rh4 {[%clk 0:02:38]}  Bxf3 {[%clk 0:02:38]} 10. Qxf3 {[%clk 0:02:39]}  e6 {[%clk 0:02:36]} 11. Rg4 {[%clk 0:02:36]}  Kf8 {[%clk 0:02:35]} 12. Qg3 {[%clk 0:02:30]}  Ne7 {[%clk 0:02:32]} 13. Rxg7 {[%clk 0:02:25]}  Nf5 {[%clk 0:02:23]} 14. Rxf7+ {[%clk 0:02:24]}  Kxf7 {[%clk 0:02:20]} 15. Qg6+ {[%clk 0:02:24]}  Ke7 {[%clk 0:01:58]} 16. g4 {[%clk 0:02:18]}  Nh4 {[%clk 0:01:46]} 17. Qg7+ {[%clk 0:02:16]}  Ke8 {[%clk 0:01:44]} 18. Qxh8+ {[%clk 0:02:16]}  Kd7 {[%clk 0:01:45]} 19. Qxd8+ {[%clk 0:02:12]}  Kxd8 {[%clk 0:01:46]} 20. Bxh6 {[%clk 0:02:05]}  Nf3+ {[%clk 0:01:46]} 21. Kf2 {[%clk 0:02:02]}  Nxd4 {[%clk 0:01:46]} 22. Bd3 {[%clk 0:01:59]}  c5 {[%clk 0:01:47]} 23. Bg7 {[%clk 0:01:49]}  c4 {[%clk 0:01:46]} 24. Bg6 {[%clk 0:01:48]}  Nbc6 {[%clk 0:01:42]} 25. c3 {[%clk 0:01:33]}  Nb5 {[%clk 0:01:38]} 26. Nd2 {[%clk 0:01:29]}  Ne7 {[%clk 0:01:36]} 27. Bc2 {[%clk 0:01:26]}  Kd7 {[%clk 0:01:34]} 28. h6 {[%clk 0:01:24]}  d4 {[%clk 0:01:35]} 29. cxd4 {[%clk 0:01:21]}  Nxd4 {[%clk 0:00:44]} 30. Be4 {[%clk 0:01:20]} 1-0


[Site "https://www.chess.com"]

[Event "Titled Tuesday Blitz August 08 Late 2023"]
[White "Ansh M Shah"]
[Black "Ferrufino, Boris"]
[WhiteFideId "25033379"]
[BlackFideId "3300170"]
[WhiteElo "2514"]
[BlackElo "2078"]
[Result "1-0"]
[Round "4"]
[TimeControl "180+1"]
[Date "2023.08.08"]
[WhiteClock "0:00:33"]
[BlackClock "0:00:04"]
[Board "104"]

1. d4 {[%clk 0:03:00]}  Nf6 {[%clk 0:02:45]} 2. c4 {[%clk 0:03:00]}  e6 {[%clk 0:02:40]} 3. g3 {[%clk 0:03:00]}  d5 {[%clk 0:02:37]} 4. Bg2 {[%clk 0:03:01]}  c6 {[%clk 0:02:37]} 5. Nf3 {[%clk 0:03:01]}  Bd6 {[%clk 0:02:34]} 6. O-O {[%clk 0:03:01]}  Nbd7 {[%clk 0:02:33]} 7. Nbd2 {[%clk 0:03:02]}  O-O {[%clk 0:02:33]} 8. Qc2 {[%clk 0:03:03]}  Qe7 {[%clk 0:02:21]} 9. e4 {[%clk 0:03:02]}  dxe4 {[%clk 0:02:15]} 10. Nxe4 {[%clk 0:03:03]}  Nxe4 {[%clk 0:02:15]} 11. Qxe4 {[%clk 0:03:04]}  Nf6 {[%clk 0:02:03]} 12. Qe2 {[%clk 0:03:02]}  b6 {[%clk 0:02:02]} 13. Ne5 {[%clk 0:02:54]}  Bb7 {[%clk 0:01:44]} 14. Bxc6 {[%clk 0:02:33]}  Bxe5 {[%clk 0:01:37]} 15. Bxb7 {[%clk 0:02:31]}  Qxb7 {[%clk 0:01:26]} 16. dxe5 {[%clk 0:02:23]}  Nd7 {[%clk 0:01:23]} 17. Rd1 {[%clk 0:02:22]}  Rac8 {[%clk 0:01:15]} 18. b3 {[%clk 0:02:21]}  Rfd8 {[%clk 0:01:12]} 19. Bg5 {[%clk 0:02:20]}  Re8 {[%clk 0:01:08]} 20. Rd6 {[%clk 0:02:05]}  h6 {[%clk 0:01:07]} 21. Bf4 {[%clk 0:02:01]}  Nf8 {[%clk 0:00:58]} 22. Rad1 {[%clk 0:01:56]}  Qc7 {[%clk 0:00:51]} 23. Be3 {[%clk 0:01:43]}  Red8 {[%clk 0:00:33]} 24. Qd3 {[%clk 0:01:33]}  Re8 {[%clk 0:00:32]} 25. Qe4 {[%clk 0:01:22]}  Red8 {[%clk 0:00:25]} 26. Qd4 {[%clk 0:01:17]}  Rxd6 {[%clk 0:00:25]} 27. exd6 {[%clk 0:01:01]}  Qc6 {[%clk 0:00:22]} 28. b4 {[%clk 0:00:56]}  Nd7 {[%clk 0:00:21]} 29. c5 {[%clk 0:00:46]}  bxc5 {[%clk 0:00:19]} 30. bxc5 {[%clk 0:00:47]}  Qf3 {[%clk 0:00:17]} 31. Rc1 {[%clk 0:00:43]}  h5 {[%clk 0:00:13]} 32. Qa4 {[%clk 0:00:35]}  Qb7 {[%clk 0:00:04]} 33. c6 {[%clk 0:00:33]} 1-0


[Site "https://www.chess.com"]

[Event "Titled Tuesday Blitz August 08 Late 2023"]
[White "Salemgareev, Tagir"]
[Black "Romero Ruscalleda, Josep"]
[WhiteFideId "24199052"]
[BlackFideId "2231859"]
[WhiteElo "2661"]
[BlackElo "2394"]
[Result "0-1"]
[Round "4"]
[TimeControl "180+1"]
[Date "2023.08.08"]
[WhiteClock "0:00:00"]
[BlackClock "0:00:23"]
[Board "107"]

1. d4 {[%clk 0:02:45]}  g6 {[%clk 0:03:00]} 2. h4 {[%clk 0:02:45]}  c5 {[%clk 0:02:59]} 3. d5 {[%clk 0:02:44]}  h5 {[%clk 0:02:56]} 4. c4 {[%clk 0:02:42]}  d6 {[%clk 0:02:56]} 5. Nc3 {[%clk 0:02:41]}  Nf6 {[%clk 0:02:54]} 6. e4 {[%clk 0:02:40]}  Bg7 {[%clk 0:02:53]} 7. g3 {[%clk 0:02:39]}  Nbd7 {[%clk 0:02:47]} 8. Bh3 {[%clk 0:02:35]}  Ne5 {[%clk 0:02:44]} 9. Bxc8 {[%clk 0:02:32]}  Qxc8 {[%clk 0:02:40]} 10. Qe2 {[%clk 0:02:32]}  Qg4 {[%clk 0:02:39]} 11. b3 {[%clk 0:01:54]}  a6 {[%clk 0:02:24]} 12. a4 {[%clk 0:01:47]}  O-O {[%clk 0:02:13]} 13. Bd2 {[%clk 0:01:41]}  Nfd7 {[%clk 0:01:47]} 14. Qxg4 {[%clk 0:01:15]}  hxg4 {[%clk 0:01:42]} 15. Ke2 {[%clk 0:01:12]}  f5 {[%clk 0:01:32]} 16. Re1 {[%clk 0:01:04]}  fxe4 {[%clk 0:01:28]} 17. Nxe4 {[%clk 0:01:02]}  Rf5 {[%clk 0:01:26]} 18. Bf4 {[%clk 0:00:58]}  b5 {[%clk 0:01:17]} 19. axb5 {[%clk 0:00:54]}  axb5 {[%clk 0:01:17]} 20. cxb5 {[%clk 0:00:55]}  Ra2+ {[%clk 0:01:13]} 21. Nd2 {[%clk 0:00:40]}  Nb6 {[%clk 0:01:08]} 22. f3 {[%clk 0:00:19]}  Nxd5 {[%clk 0:01:02]} 23. fxg4 {[%clk 0:00:17]}  Nxf4+ {[%clk 0:00:58]} 24. gxf4 {[%clk 0:00:16]}  Rxf4 {[%clk 0:00:59]} 25. Ke3 {[%clk 0:00:15]}  Rxg4 {[%clk 0:00:54]} 26. Ne2 {[%clk 0:00:08]}  Bh6+ {[%clk 0:00:52]} 27. Kf2 {[%clk 0:00:05]}  Rxd2 {[%clk 0:00:51]} 28. Rhg1 {[%clk 0:00:03]}  Rxh4 {[%clk 0:00:37]} 29. Kf1 {[%clk 0:00:01]}  Nf3 {[%clk 0:00:31]} 30. b6 {[%clk 0:00:00]}  Rb2 {[%clk 0:00:23]} 0-1


[Site "https://www.chess.com"]

[Event "Titled Tuesday Blitz August 08 Late 2023"]
[White "Rosen, Eric"]
[Black "Zenin, Dmitry"]
[WhiteFideId "2032562"]
[BlackFideId "4127897"]
[WhiteElo "2613"]
[BlackElo "2392"]
[Result "1-0"]
[Round "4"]
[TimeControl "180+1"]
[Date "2023.08.08"]
[WhiteClock "0:00:27"]
[BlackClock "0:00:00"]
[Board "108"]

1. e4 {[%clk 0:02:56]}  e5 {[%clk 0:02:59]} 2. Nf3 {[%clk 0:02:55]}  Nc6 {[%clk 0:02:59]} 3. c3 {[%clk 0:02:54]}  Nf6 {[%clk 0:02:56]} 4. d4 {[%clk 0:02:54]}  exd4 {[%clk 0:02:56]} 5. e5 {[%clk 0:02:53]}  Nd5 {[%clk 0:02:56]} 6. Qb3 {[%clk 0:02:52]}  Nb6 {[%clk 0:02:54]} 7. cxd4 {[%clk 0:02:52]}  d6 {[%clk 0:02:48]} 8. Bb5 {[%clk 0:02:51]}  a6 {[%clk 0:02:42]} 9. Bxc6+ {[%clk 0:02:49]}  bxc6 {[%clk 0:02:42]} 10. Ng5 {[%clk 0:02:42]}  Qd7 {[%clk 0:02:33]} 11. O-O {[%clk 0:02:27]}  h6 {[%clk 0:02:32]} 12. Nf3 {[%clk 0:02:07]}  Be7 {[%clk 0:02:26]} 13. Nc3 {[%clk 0:02:04]}  O-O {[%clk 0:02:23]} 14. Bf4 {[%clk 0:02:04]}  Qe6 {[%clk 0:02:14]} 15. Qc2 {[%clk 0:01:59]}  Nd5 {[%clk 0:02:10]} 16. Bg3 {[%clk 0:01:50]}  Qf5 {[%clk 0:02:05]} 17. Qd2 {[%clk 0:01:46]}  Be6 {[%clk 0:01:56]} 18. Rac1 {[%clk 0:01:46]}  Rfd8 {[%clk 0:01:46]} 19. Rfe1 {[%clk 0:01:46]}  Rab8 {[%clk 0:01:42]} 20. Ne4 {[%clk 0:01:43]}  Rb6 {[%clk 0:01:32]} 21. b3 {[%clk 0:01:43]}  Bf8 {[%clk 0:01:23]} 22. h3 {[%clk 0:01:37]}  Qh5 {[%clk 0:01:14]} 23. Qe2 {[%clk 0:01:25]}  a5 {[%clk 0:01:10]} 24. Rc2 {[%clk 0:01:08]}  Nb4 {[%clk 0:01:04]} 25. Rd2 {[%clk 0:01:04]}  Bd5 {[%clk 0:00:52]} 26. Nc3 {[%clk 0:01:00]}  Bxf3 {[%clk 0:00:51]} 27. Qxf3 {[%clk 0:00:56]}  Qxf3 {[%clk 0:00:50]} 28. gxf3 {[%clk 0:00:57]}  Re8 {[%clk 0:00:34]} 29. Na4 {[%clk 0:00:49]}  Rb5 {[%clk 0:00:32]} 30. Rc1 {[%clk 0:00:49]}  dxe5 {[%clk 0:00:19]} 31. dxe5 {[%clk 0:00:47]}  Be7 {[%clk 0:00:08]} 32. Rd7 {[%clk 0:00:47]}  Kf8 {[%clk 0:00:04]} 33. Rxc7 {[%clk 0:00:46]}  Nxa2 {[%clk 0:00:04]} 34. R1xc6 {[%clk 0:00:39]}  Rxb3 {[%clk 0:00:04]} 35. Ra6 {[%clk 0:00:34]}  Nb4 {[%clk 0:00:01]} 36. Raa7 {[%clk 0:00:28]}  Nd5 {[%clk 0:00:00]} 37. Rd7 {[%clk 0:00:27]} 1-0


[Site "https://www.chess.com"]